bitfinex/quotes_BTCUSD_20241011
["timestamp","ask_amount","ask_price","bid_price","bid_amount"]
[1728626790347,0.62851482,60643.0,60642.0,0.000817]
[1728626790348,0.57912292,60643.0,60642.0,0.000817]
[1728626790566,0.63450047,60643.0,60642.0,0.001817]
[1728626791009,0.63450047,60643.0,60642.0,0.000817]
[1728626791010,0.62850047,60643.0,60642.0,0.000817]
[1728626791222,0.62850047,60643.0,60642.0,0.001817]
[1728626791435,0.63950047,60643.0,60642.0,0.001817]
[1728626791638,0.59012292,60643.0,60642.0,0.001817]
[1728626791841,0.60112292,60643.0,60642.0,0.002817]
[1728626793890,0.61294737,60643.0,60642.0,0.002817]
[1728626798857,0.214634,60643.0,60642.0,0.002817]
[1728626799070,0.214634,60643.0,60642.0,0.23908361]
[1728626799071,0.023634,60643.0,60642.0,0.23908361]
[1728626799489,0.023634,60643.0,60642.0,0.24238132]
[1728626799703,0.023634,60643.0,60642.0,0.23908361]
[1728626799918,0.012634,60643.0,60642.0,0.23808361]
[1728626800148,0.001634,60643.0,60642.0,0.28656925]
[1728626800376,0.002634,60643.0,60642.0,0.28656925]
[1728626800804,0.002634,60643.0,60642.0,0.23708361]
[1728626801224,0.002634,60643.0,60642.0,0.24038128]
[1728626801466,0.004634,60643.0,60642.0,0.24038128]
[1728626801681,0.001634,60643.0,60642.0,0.24038128]
[1728626801891,0.001634,60643.0,60642.0,0.25238128]
[1728626801892,0.003634,60643.0,60642.0,0.25238128]
[1728626802323,0.002634,60643.0,60642.0,0.24308361]
[1728626802535,0.002634,60643.0,60642.0,0.24638128]
[1728626803091,0.002634,60643.0,60642.0,0.24308361]
[1728626803308,0.003634,60643.0,60642.0,0.25238128]
[1728626803515,0.003634,60643.0,60642.0,0.24908361]
[1728626804386,0.003634,60643.0,60642.0,0.16265723]
[1728626804591,0.003634,60643.0,60642.0,0.24908361]
[1728626805003,0.002634,60643.0,60642.0,0.24308361]
[1728626805215,0.001634,60643.0,60642.0,0.23708361]
[1728626805410,0.002634,60643.0,60642.0,0.24308361]
[1728626805611,0.003634,60643.0,60642.0,0.24908361]
[1728626807264,0.003634,60643.0,60642.0,0.16265723]
[1728626813859,0.003634,60643.0,60642.0,0.16595491]
[1728626816167,0.003634,60643.0,60642.0,0.16265723]
[1728626816843,0.003634,60643.0,60642.0,0.16595491]
[1728626817281,0.003634,60643.0,60642.0,0.16265723]
[1728626820065,0.003634,60643.0,60642.0,0.16595491]
[1728626823381,0.003634,60643.0,60642.0,0.33526421]
[1728626823629,0.003634,60643.0,60642.0,0.94574047]
[1728626823850,0.003634,60643.0,60642.0,0.82835781]
[1728626824066,0.003634,60643.0,60642.0,0.75634625]
[1728626824819,0.002634,60643.0,60642.0,0.75034625]
[1728626825288,0.002634,60643.0,60642.0,0.76842355]
[1728626825289,0.003634,60643.0,60642.0,0.76842355]
[1728626825715,0.003634,60643.0,60642.0,0.84032777]
[1728626825934,0.003634,60643.0,60642.0,0.76841142]
[1728626828247,0.003634,60643.0,60642.0,0.89159722]
[1728626830056,0.003634,60643.0,60642.0,0.80517084]
[1728626830258,0.003634,60643.0,60642.0,0.9780236]
[1728626830670,0.003634,60643.0,60642.0,0.8548378]
[1728626832193,0.003634,60643.0,60642.0,0.95333091]
[1728626833644,0.003634,60643.0,60642.0,0.8548378]
[1728626835859,0.003634,60643.0,60642.0,0.95331714]
[1728626836281,0.003634,60643.0,60642.0,0.8548378]
[1728626836700,0.003634,60643.0,60642.0,0.95331714]
[1728626837735,0.003634,60643.0,60642.0,0.78046438]
[1728626837946,0.003634,60643.0,60642.0,0.9287124]
[1728626838199,0.003634,60643.0,60642.0,0.92871257]
[1728626838624,0.003634,60643.0,60642.0,0.84028619]
[1728626838847,0.003634,60643.0,60642.0,0.84029795]
[1728626839054,0.003634,60643.0,60642.0,0.92672433]
[1728626839259,0.003634,60643.0,60642.0,0.92872433]
[1728626839747,0.003634,60643.0,60642.0,0.8548378]
[1728626839981,0.003634,60643.0,60642.0,0.76841142]
[1728626840668,0.003634,60643.0,60642.0,0.75388572]
[1728626840912,0.003634,60643.0,60642.0,0.75433412]
[1728626841137,0.003634,60643.0,60642.0,0.70299291]
[1728626841347,0.003634,60643.0,60642.0,0.75439902]
[1728626841555,0.003634,60643.0,60642.0,0.82831475]
[1728626841982,0.003634,60643.0,60642.0,0.70299291]
[1728626842265,0.003634,60643.0,60642.0,0.77690864]
[1728626842841,0.003634,60643.0,60642.0,0.75229982]
[1728626843059,0.003634,60643.0,60642.0,0.70299291]
[1728626843459,0.003634,60643.0,60642.0,0.77690864]
[1728626844009,0.003634,60643.0,60642.0,0.52339291]
[1728626844217,0.003634,60643.0,60642.0,0.43696653]
[1728626844656,0.003634,60643.0,60642.0,0.48629377]
[1728626845077,0.003634,60643.0,60642.0,0.43696653]
[1728626845710,0.003634,60643.0,60642.0,0.51095694]
[1728626846973,0.003634,60643.0,60642.0,0.50595694]
[1728626853687,0.003634,60643.0,60642.0,0.5304819]
[1728626854133,0.003634,60643.0,60642.0,0.43196653]
[1728626855034,0.003634,60643.0,60642.0,0.48342413]
[1728626855238,0.003634,60643.0,60642.0,0.60656835]
[1728626855662,0.003634,60643.0,60642.0,0.60656976]
[1728626856492,0.003634,60643.0,60642.0,0.48342554]
[1728626856722,0.003634,60643.0,60642.0,0.60656976]
[1728626857194,0.003634,60643.0,60642.0,0.48342554]
[1728626857867,0.003634,60643.0,60642.0,0.53073258]
[1728626858318,0.003634,60643.0,60642.0,0.58221137]
[1728626860253,0.003634,60643.0,60642.0,0.48344532]
[1728626860740,0.099834,60643.0,60642.0,0.21413602]
[1728626861008,0.099834,60643.0,60642.0,0.16265723]
[1728626861009,0.176534,60643.0,60642.0,0.16265723]
[1728626861823,0.174534,60643.0,60642.0,0.15065723]
[1728626862072,0.174534,60643.0,60642.0,0.16165723]
[1728626862318,0.174534,60643.0,60642.0,0.15565723]
[1728626862576,0.174534,60643.0,60642.0,0.15165723]
[1728626862813,0.174534,60643.0,60642.0,0.15065723]
[1728626865085,0.26096038,60643.0,60642.0,0.000817]
[1728626866118,0.26396038,60643.0,60642.0,0.000817]
[1728626866367,0.26096038,60643.0,60642.0,0.000817]
[1728626866828,0.26596038,60643.0,60642.0,0.000817]
[1728626867491,0.26996038,60643.0,60642.0,0.000817]
[1728626867955,0.26596038,60643.0,60642.0,0.000817]
[1728626868378,0.27196038,60643.0,60642.0,0.001817]
[1728626871426,0.42036938,60643.0,60642.0,0.001817]
[1728626871651,0.68455802,60643.0,60642.0,0.001817]
[1728626873240,0.61267868,60643.0,60642.0,0.001817]
[1728626888076,0.5262523,60643.0,60642.0,0.001817]
[1728626888284,0.61267868,60643.0,60642.0,0.001817]
[1728626892005,0.46426968,60643.0,60642.0,0.001817]
[1728626892664,0.3778433,60643.0,60642.0,0.001817]
[1728626893106,0.5262523,60643.0,60642.0,0.001817]
[1728626894009,0.3778433,60643.0,60642.0,0.001817]
[1728626895340,0.5262523,60643.0,60642.0,0.001817]
[1728626895544,0.61267868,60643.0,60642.0,0.001817]
[1728626896930,0.3011433,60643.0,60642.0,0.001817]
[1728626897169,0.012634,60643.0,60642.0,0.001817]
[1728626897447,0.012634,60643.0,60642.0,0.150228]
[1728626899109,0.012634,60643.0,60642.0,0.001817]
[1728626900632,0.012634,60643.0,60642.0,0.14995997]
[1728626900838,0.012634,60643.0,60642.0,0.00154897]
[1728626901690,0.012634,60643.0,60642.0,0.14995997]
[1728626901897,0.012634,60643.0,60642.0,0.00154897]
[1728626902100,0.012634,60643.0,60642.0,0.14995997]
[1728626902522,0.00718153,60643.0,60642.0,0.14995997]
[1728626903760,0.00718153,60643.0,60642.0,0.00154897]
[1728626904613,0.00718153,60643.0,60642.0,0.14995997]
[1728626908975,0.00718153,60643.0,60642.0,0.14969207]
[1728626910923,0.00881553,60643.0,60642.0,0.14969207]
[1728626915495,0.00881553,60643.0,60642.0,0.00128107]
[1728626916196,0.00881553,60643.0,60642.0,0.14969207]
[1728626918872,0.00881553,60643.0,60642.0,0.00101317]
[1728626923173,0.00881553,60643.0,60642.0,0.14942417]
[1728626928987,0.00881553,60643.0,60642.0,0.14915627]
[1728626929213,0.00881553,60643.0,60642.0,0.31681188]
[1728626929410,0.00881553,60643.0,60642.0,0.40741188]
[1728626929616,0.00881553,60643.0,60642.0,0.45685962]
[1728626930093,0.007634,60643.0,60642.0,0.40741188]
[1728626930321,0.007634,60643.0,60642.0,0.41341188]
[1728626930575,0.001634,60643.0,60642.0,0.41266661]
[1728626930782,0.001634,60643.0,60642.0,0.41166661]
[1728626931397,0.001634,60643.0,60642.0,0.40666661]
[1728626931612,0.001634,60643.0,60642.0,0.41166661]
[1728626932074,0.001634,60643.0,60642.0,0.41266661]
[1728626932283,0.001634,60643.0,60642.0,0.40666661]
[1728626932495,0.001634,60643.0,60642.0,0.41766661]
[1728626932923,0.001634,60643.0,60642.0,0.41166661]
[1728626933196,0.001634,60643.0,60642.0,0.41766661]
[1728626933641,0.001634,60643.0,60642.0,0.40666661]
[1728626933852,0.001634,60643.0,60642.0,0.41166661]
[1728626934288,0.001634,60643.0,60642.0,0.41848361]
[1728626937170,0.001634,60643.0,60642.0,0.41348361]
[1728626937383,0.001634,60643.0,60642.0,0.41648361]
[1728626938268,0.001634,60643.0,60642.0,0.41348361]
[1728626938751,0.001634,60643.0,60642.0,0.40948361]
[1728626938963,0.001634,60643.0,60642.0,0.41421571]
[1728626939177,0.001634,60643.0,60642.0,0.40921571]
[1728626939608,0.001634,60643.0,60642.0,0.41321571]
[1728626940261,0.001634,60643.0,60642.0,0.41249481]
[1728626941233,0.001634,60643.0,60642.0,0.32606843]
[1728626941456,0.001634,60643.0,60642.0,0.15566843]
[1728626942387,0.001634,60643.0,60642.0,0.15166843]
[1728626942612,0.001634,60643.0,60642.0,0.15266843]
[1728626942831,0.001634,60643.0,60642.0,0.14966843]
[1728626944010,0.002634,60643.0,60642.0,0.14966843]
[1728626944247,0.002634,60643.0,60642.0,0.000817]
[1728626949054,0.002634,60643.0,60642.0,0.0005491]
[1728626949280,0.002634,60643.0,60642.0,1.51e-05]
[1728626950150,0.002634,60643.0,60642.0,0.1484261]
[1728626958947,0.002634,60643.0,60642.0,0.1481582]
[1728626959440,0.002634,60643.0,60642.0,0.1478912]
[1728626960186,0.025634,60643.0,60642.0,0.1478912]
[1728626969125,0.025634,60643.0,60642.0,0.1476233]
[1728626970199,0.025634,60643.0,60642.0,0.1484403]
[1728626970418,0.025634,60643.0,60642.0,0.000817]
[1728626971305,0.025634,60643.0,60642.0,0.149228]
[1728626974158,0.025634,60643.0,60642.0,0.000817]
[1728626974363,0.025634,60643.0,60642.0,0.149228]
[1728626975254,0.025634,60643.0,60642.0,0.000817]
[1728626975477,0.025634,60643.0,60642.0,0.149228]
[1728626978175,0.025634,60643.0,60642.0,0.000817]
[1728626978176,0.268743,60643.0,60642.0,0.000817]
[1728626978469,0.351843,60643.0,60642.0,0.000817]
[1728626978979,0.5211523,60643.0,60642.0,0.000817]
[1728626979238,0.59827969,60643.0,60642.0,0.000817]
[1728626979487,0.59825645,60643.0,60642.0,0.000817]
[1728626979725,0.59725645,60643.0,60642.0,0.000817]
[1728626980223,0.60425645,60643.0,60642.0,0.001817]
[1728626980723,0.59725645,60643.0,60642.0,0.000817]
[1728626980998,0.5331523,60643.0,60642.0,0.001817]
[1728626981474,0.5361523,60643.0,60642.0,0.002817]
[1728626981702,0.58253954,60643.0,60642.0,0.001817]
[1728626981913,0.58553954,60643.0,60642.0,0.002817]
[1728626982344,0.5361523,60643.0,60642.0,0.002817]
[1728626982579,0.58553427,60643.0,60642.0,0.002817]
[1728626983444,0.74175926,60643.0,60642.0,0.002817]
[1728626983649,0.74176173,60643.0,60642.0,0.002817]
[1728626984755,0.69237729,60643.0,60642.0,0.002817]
[1728626986916,0.74176173,60643.0,60642.0,0.002817]
[1728626987761,0.69237729,60643.0,60642.0,0.002817]
[1728626989425,0.69437729,60643.0,60642.0,0.002817]
[1728626990535,0.74373588,60643.0,60642.0,0.002817]
[1728626990758,0.74173588,60643.0,60642.0,0.002817]
[1728626992962,0.74172501,60643.0,60642.0,0.002817]
[1728626993397,0.69237729,60643.0,60642.0,0.002817]
[1728626997124,0.5361523,60643.0,60642.0,0.002817]
[1728627002753,0.2099433,60643.0,60642.0,0.002817]
[1728627004119,0.017634,60643.0,60642.0,0.002817]
[1728627004341,0.017634,60643.0,60642.0,0.151228]
[1728627005178,0.001634,60643.0,60642.0,0.149228]
[1728627005605,0.012634,60643.0,60642.0,0.245628]
[1728627005818,0.012634,60643.0,60642.0,0.323028]
[1728627007094,0.035634,60643.0,60642.0,0.323028]
[1728627011460,0.035634,60643.0,60642.0,0.41088361]
[1728627011461,0.012634,60643.0,60642.0,0.41088361]
[1728627012323,0.001634,60643.0,60642.0,0.32245723]
[1728627012523,0.002634,60643.0,60642.0,0.32245723]
[1728627013802,0.001634,60643.0,60642.0,0.32245723]
[1728627014733,0.001634,60643.0,60642.0,0.32345723]
[1728627021847,0.001634,60643.0,60642.0,0.32273507]
[1728627022097,0.001634,60643.0,60642.0,0.31827331]
[1728627022600,0.001634,60643.0,60642.0,0.31855992]
[1728627028166,0.001634,60643.0,60642.0,0.31937692]
[1728627028391,0.003634,60643.0,60642.0,0.31837692]
[1728627028631,0.003634,60643.0,60642.0,0.32437692]
[1728627029171,0.003634,60643.0,60642.0,0.31811592]
[1728627029420,0.003634,60643.0,60642.0,0.32311592]
[1728627029893,0.001634,60643.0,60642.0,0.32311592]
[1728627030133,0.004634,60643.0,60642.0,0.32311592]
[1728627030887,0.004634,60643.0,60642.0,0.15131592]
[1728627031145,0.027634,60643.0,60642.0,0.00753284]
[1728627033066,0.027634,60643.0,60642.0,0.15594384]
[1728627035137,0.027634,60643.0,60642.0,0.00753284]
[1728627036629,0.027634,60643.0,60642.0,0.15594384]
[1728627039144,0.027634,60643.0,60642.0,0.12152907]
[1728627040138,0.027634,60643.0,60642.0,0.12234607]
[1728627047221,0.027634,60643.0,60642.0,0.000817]
[1728627047881,0.43596938,60643.0,60642.0,0.000817]
[1728627050302,0.76896254,60643.0,60642.0,0.000817]
[1728627050517,0.60527868,60643.0,60642.0,0.000817]
[1728627051376,0.60527868,60643.0,60642.0,0.005817]
[1728627051590,0.60227868,60643.0,60642.0,0.005817]
[1728627051802,0.60227868,60643.0,60642.0,0.000817]
[1728627051803,0.60427868,60643.0,60642.0,0.000817]
[1728627052021,0.61127868,60643.0,60642.0,0.001817]
[1728627052445,0.60927868,60643.0,60642.0,0.001817]
[1728627052870,0.62327868,60643.0,60642.0,0.002817]
[1728627054425,0.5368523,60643.0,60642.0,0.002817]
[1728627054635,0.62327868,60643.0,60642.0,0.002817]
[1728627062207,0.54247868,60643.0,60642.0,0.002817]
[1728627062444,0.045634,60643.0,60642.0,0.002817]
[1728627062671,0.022634,60643.0,60642.0,0.002817]
[1728627063962,0.045634,60643.0,60642.0,0.002817]
[1728627064809,0.194043,60643.0,60642.0,0.002817]
[1728627065685,0.045634,60643.0,60642.0,0.002817]
[1728627066787,0.194043,60643.0,60642.0,0.002817]
[1728627069032,0.045634,60643.0,60642.0,0.002817]
[1728627069655,0.194043,60643.0,60642.0,0.001599]
[1728627071069,0.045634,60643.0,60642.0,0.001599]
[1728627075794,0.194043,60643.0,60642.0,0.001599]
[1728627076029,0.194043,60643.0,60642.0,0.002416]
[1728627081991,0.19252967,60643.0,60642.0,0.002416]
[1728627088110,0.19975848,60643.0,60642.0,0.002416]
[1728627089430,0.24921533,60643.0,60642.0,0.002416]
[1728627091500,0.24923915,60643.0,60642.0,0.002416]
[1728627093517,0.19975848,60643.0,60642.0,0.002416]
[1728627110301,0.274009,60643.0,60642.0,0.002416]
[1728627110501,0.24926352,60643.0,60642.0,0.002416]
[1728627110712,0.24926217,60643.0,60642.0,0.002416]
[1728627110939,0.19975848,60643.0,60642.0,0.002416]
[1728627113741,0.27401402,60643.0,60642.0,0.002416]
[1728627113952,0.19975848,60643.0,60642.0,0.002416]
[1728627116109,0.27401402,60643.0,60642.0,0.002416]
[1728627119607,0.27402681,60643.0,60642.0,0.002416]
[1728627121344,0.05134948,60643.0,60642.0,0.002416]
[1728627121579,0.05134948,60643.0,60642.0,0.175516]
[1728627123537,0.05134948,60643.0,60642.0,0.41035338]
[1728627123538,0.02834948,60643.0,60642.0,0.41035338]
[1728627124156,0.01434948,60643.0,60642.0,0.40935338]
[1728627124363,0.00734948,60643.0,60642.0,0.40875438]
[1728627124547,0.00712067,60643.0,60642.0,0.41075438]
[1728627124741,0.00712067,60643.0,60642.0,0.324328]
[1728627124956,0.00012067,60643.0,60642.0,0.322328]
[1728627126182,0.00012067,60643.0,60642.0,0.327328]
[1728627126408,0.00012067,60643.0,60642.0,0.322328]
[1728627126616,0.00012067,60643.0,60642.0,0.000817]
[1728627126817,0.00012067,60643.0,60642.0,0.007817]
[1728627127029,0.00012067,60643.0,60642.0,0.002817]
[1728627127483,0.03065311,60643.0,60642.0,0.005817]
[1728627127629,0.023,60642.0,60640.0,0.13135647]
[1728627128027,0.00012067,60643.0,60640.0,0.13135647]
[1728627128234,0.00012067,60643.0,60641.0,0.148414]
[1728627128659,0.023,60642.0,60641.0,0.148414]
[1728627129107,0.03057478,60642.0,60641.0,0.148414]
[1728627129796,0.00012067,60643.0,60641.0,0.148414]
[1728627130024,0.00012067,60643.0,60641.0,0.151414]
[1728627130464,0.023,60642.0,60641.0,0.151414]
[1728627130665,0.0305749,60642.0,60641.0,0.151414]
[1728627131106,0.0305749,60642.0,60641.0,0.148414]
[1728627131609,0.023,60642.0,60641.0,0.148414]
[1728627131854,0.00012067,60643.0,60641.0,0.151414]
[1728627132311,0.027,60642.0,60641.0,0.151414]
[1728627133001,0.027,60642.0,60641.0,0.148414]
[1728627133550,0.00012067,60643.0,60642.0,0.148411]
[1728627133786,0.02712067,60643.0,60642.0,0.148411]
[1728627134262,0.00012067,60643.0,60642.0,0.148411]
[1728627135060,0.00012067,60643.0,60642.0,0.149228]
[1728627135307,0.00312067,60643.0,60642.0,0.153228]
[1728627135572,0.02612067,60643.0,60642.0,0.153228]
[1728627136583,0.0339482,60643.0,60642.0,0.153228]
[1728627136833,0.0339482,60643.0,60642.0,0.149228]
[1728627137354,0.02612067,60643.0,60642.0,0.325528]
[1728627137864,0.00012067,60643.0,60642.0,0.325528]
[1728627138116,0.02612067,60643.0,60642.0,0.321488]
[1728627138623,0.00012067,60643.0,60642.0,0.321488]
[1728627138858,0.02512067,60643.0,60642.0,0.326488]
[1728627139098,0.02512067,60643.0,60642.0,0.41291438]
[1728627139357,0.00212067,60643.0,60642.0,0.41291438]
[1728627140073,0.00212067,60643.0,60642.0,0.40791438]
[1728627140312,0.00212067,60643.0,60642.0,0.41291438]
[1728627183301,0.00212067,60643.0,60642.0,0.46234705]
[1728627183989,0.00212067,60643.0,60642.0,0.37592067]
[1728627188391,0.00212067,60643.0,60642.0,0.20362067]
[1728627190317,0.00212067,60643.0,60642.0,0.25305334]
[1728627190559,0.00212067,60643.0,60642.0,0.2036412]
[1728627191085,0.00212067,60643.0,60642.0,0.20364354]
[1728627191515,0.00212067,60643.0,60642.0,0.22837132]
[1728627193973,0.00212067,60643.0,60642.0,0.1574857]
[1728627194183,0.00212067,60643.0,60642.0,0.23167903]
[1728627196117,0.00212067,60643.0,60642.0,0.22838133]
[1728627196349,0.00212067,60643.0,60642.0,0.154188]
[1728627197028,0.00212067,60643.0,60642.0,0.22838133]
[1728627197212,0.00212067,60643.0,60642.0,0.154188]
[1728627203067,0.00212067,60643.0,60642.0,0.22838133]
[1728627203300,0.00212067,60643.0,60642.0,0.154188]
[1728627203685,0.00212067,60643.0,60642.0,0.22838133]
[1728627205015,0.00212067,60643.0,60642.0,0.22837112]
[1728627207517,0.00129067,60643.0,60642.0,0.22837112]
[1728627207728,0.00129067,60643.0,60642.0,0.20364563]
[1728627209636,0.00129067,60643.0,60642.0,0.20365636]
[1728627214392,0.00129067,60643.0,60642.0,0.20366017]
[1728627217940,0.00292467,60643.0,60642.0,0.20366017]
[1728627219064,0.00292467,60643.0,60642.0,0.20366184]
[1728627223741,0.00292467,60643.0,60642.0,0.2036709]
[1728627227248,0.00292467,60643.0,60642.0,0.1675709]
[1728627228500,0.00292467,60643.0,60642.0,0.16756905]
[1728627231046,0.00292467,60643.0,60642.0,0.16756909]
[1728627237695,0.00292467,60643.0,60642.0,0.16757023]
[1728627240001,0.00292467,60643.0,60642.0,0.19231135]
[1728627241123,0.00292467,60643.0,60642.0,0.19231485]
[1728627243787,0.00292467,60643.0,60642.0,0.16757372]
[1728627249958,0.00292467,60643.0,60642.0,0.118088]
[1728627250390,0.00292467,60643.0,60642.0,0.19231608]
[1728627250615,0.02592467,60643.0,60642.0,0.005817]
[1728627250901,0.12372467,60643.0,60642.0,0.05530539]
[1728627251119,0.20532467,60643.0,60642.0,0.005817]
[1728627251568,0.02592467,60643.0,60642.0,0.005817]
[1728627251797,0.02592467,60643.0,60642.0,0.154228]
[1728627252902,0.02592467,60643.0,60642.0,0.20371639]
[1728627253816,0.02592467,60643.0,60642.0,0.154228]
[1728627254023,0.02592467,60643.0,60642.0,0.20371639]
[1728627254704,0.02592467,60643.0,60642.0,0.2037061]
[1728627254938,0.02592467,60643.0,60642.0,0.154228]
[1728627255805,0.02592467,60643.0,60642.0,0.2037061]
[1728627256459,0.02592467,60643.0,60642.0,0.154228]
[1728627260773,0.02592467,60643.0,60642.0,0.20370632]
[1728627261231,0.02592467,60643.0,60642.0,0.154228]
[1728627267106,0.02592467,60643.0,60642.0,0.20370583]
[1728627267753,0.02592467,60643.0,60642.0,0.154228]
[1728627269121,0.00292467,60643.0,60642.0,0.154228]
[1728627270038,0.00292467,60643.0,60642.0,0.005817]
[1728627270290,0.00292467,60643.0,60642.0,0.154228]
[1728627276857,0.00292467,60643.0,60642.0,0.20370264]
[1728627277232,0.00292467,60643.0,60642.0,0.154228]
[1728627277666,0.00292467,60643.0,60642.0,0.005817]
[1728627280807,0.42208123,60643.0,60642.0,0.005817]
[1728627281047,0.59916935,60643.0,60642.0,0.005817]
[1728627281286,0.51274297,60643.0,60642.0,0.005817]
[1728627281500,0.63648172,60643.0,60642.0,0.005817]
[1728627281723,0.61172053,60643.0,60642.0,0.005817]
[1728627282139,0.58565045,60643.0,60642.0,0.005817]
[1728627282350,0.59752313,60643.0,60642.0,0.005817]
[1728627282584,0.58564985,60643.0,60642.0,0.005817]
[1728627283031,0.5114523,60643.0,60642.0,0.006817]
[1728627283263,0.5194523,60643.0,60642.0,0.006817]
[1728627283473,0.5194523,60643.0,60642.0,0.001817]
[1728627283682,0.59062497,60643.0,60642.0,0.000817]
[1728627284127,0.58562497,60643.0,60642.0,0.000817]
[1728627284344,0.58562497,60643.0,60642.0,0.001817]
[1728627284345,0.56688727,60643.0,60642.0,0.001817]
[1728627285655,0.57888727,60643.0,60642.0,0.002817]
[1728627286269,0.5294523,60643.0,60642.0,0.002817]
[1728627316534,0.55524885,60643.0,60642.0,0.002817]
[1728627320344,0.019634,60643.0,60642.0,0.002817]
[1728627321941,0.042634,60643.0,60642.0,0.002817]
[1728627322681,0.019634,60643.0,60642.0,0.002817]
[1728627324112,0.042634,60643.0,60642.0,0.002817]
[1728627324336,0.036634,60643.0,60642.0,0.001817]
[1728627324550,0.024634,60643.0,60642.0,0.000817]
[1728627324770,0.025634,60643.0,60642.0,0.000817]
[1728627325222,0.031634,60643.0,60642.0,0.001817]
[1728627325440,0.031634,60643.0,60642.0,0.006817]
[1728627326331,0.024634,60643.0,60642.0,0.005817]
[1728627327016,0.024634,60643.0,60642.0,0.000817]
[1728627327934,0.025634,60643.0,60642.0,0.005817]
[1728627328150,0.025634,60643.0,60642.0,0.000817]
[1728627328374,0.025634,60643.0,60642.0,0.005817]
[1728627328595,0.024634,60643.0,60642.0,0.005817]
[1728627328813,0.024634,60643.0,60642.0,0.000817]
[1728627329983,0.024634,60643.0,60642.0,0.32892564]
[1728627329984,0.001634,60643.0,60642.0,0.32892564]
[1728627330236,0.001634,60643.0,60642.0,0.323628]
[1728627330664,0.001634,60643.0,60642.0,0.3208978]
[1728627330900,0.001634,60643.0,60642.0,0.32580637]
[1728627331358,0.001634,60643.0,60642.0,0.32080637]
[1728627331584,0.001634,60643.0,60642.0,0.32580637]
[1728627332314,0.001634,60643.0,60642.0,0.33080637]
[1728627332549,0.001634,60643.0,60642.0,0.32080637]
[1728627332996,0.001634,60643.0,60642.0,0.33080637]
[1728627333816,0.001634,60643.0,60642.0,0.33280637]
[1728627334237,0.001634,60643.0,60642.0,0.32280637]
[1728627334653,0.001634,60643.0,60642.0,0.33280637]
[1728627335029,0.001634,60643.0,60642.0,0.32780637]
[1728627335260,0.001634,60643.0,60642.0,0.32280637]
[1728627335492,0.001634,60643.0,60642.0,0.32862337]
[1728627335734,0.001634,60643.0,60642.0,0.33362337]
[1728627336118,0.001634,60643.0,60642.0,0.33162337]
[1728627342901,0.11106038,60643.0,60642.0,0.010817]
[1728627343124,0.25946938,60643.0,60642.0,0.010817]
[1728627343374,0.50387868,60643.0,60642.0,0.010817]
[1728627344029,0.50387868,60643.0,60642.0,0.005817]
[1728627344264,0.50387868,60643.0,60642.0,0.000817]
[1728627344520,0.50387868,60643.0,60642.0,0.004817]
[1728627344735,0.50387868,60643.0,60642.0,0.002817]
[1728627345158,0.50987868,60643.0,60642.0,0.001817]
[1728627345382,0.52287868,60643.0,60642.0,0.002817]
[1728627355500,0.44777868,60643.0,60642.0,0.002817]
[1728627358263,0.3613523,60643.0,60642.0,0.002817]
[1728627361876,0.192043,60643.0,60642.0,0.002817]
[1728627369016,0.360243,60643.0,60642.0,0.002817]
[1728627373710,0.192043,60643.0,60642.0,0.002817]
[1728627388620,0.24152563,60643.0,60642.0,0.002817]
[1728627389758,0.192043,60643.0,60642.0,0.002817]
[1728627390646,0.26626695,60643.0,60642.0,0.002817]
[1728627396235,0.192043,60643.0,60642.0,0.002817]
[1728627396953,0.26630654,60643.0,60642.0,0.002817]
[1728627402691,0.26630861,60643.0,60642.0,0.002817]
[1728627413933,0.192043,60643.0,60642.0,0.002817]
[1728627414194,0.79847454,60643.0,60642.0,0.002817]
[1728627414432,0.69945372,60643.0,60642.0,0.002817]
[1728627415392,0.95294289,60643.0,60642.0,0.002817]
[1728627415618,0.80445372,60643.0,60642.0,0.002817]
[1728627415847,0.81642602,60643.0,60642.0,0.002817]
[1728627420228,0.81142602,60643.0,60642.0,0.002817]
[1728627420459,0.81642602,60643.0,60642.0,0.002817]
[1728627420929,0.73442602,60643.0,60642.0,0.002817]
[1728627421162,0.94448896,60643.0,60642.0,0.002817]
[1728627421408,0.8208524,60643.0,60642.0,0.002817]
[1728627422317,0.8158524,60643.0,60642.0,0.002817]
[1728627422616,0.91475903,60643.0,60642.0,0.002817]
[1728627423078,0.65865761,60643.0,60642.0,0.002817]
[1728627429056,0.65863263,60643.0,60642.0,0.002817]
[1728627429275,0.65824323,60643.0,60642.0,0.002817]
[1728627432510,0.63352398,60643.0,60642.0,0.002817]
[1728627432713,0.65156158,60643.0,60642.0,0.002817]
[1728627434525,0.75044364,60643.0,60642.0,0.002817]
[1728627443182,0.75045253,60643.0,60642.0,0.002817]
[1728627447133,0.83105253,60643.0,60642.0,0.002817]
[1728627449496,1.00049523,60643.0,60642.0,0.002817]
[1728627450138,0.83105253,60643.0,60642.0,0.002817]
[1728627450608,0.73216158,60643.0,60642.0,0.002817]
[1728627453550,0.8557534,60643.0,60642.0,0.002817]
[1728627456977,0.77520263,60643.0,60642.0,0.002817]
[1728627457659,0.65156158,60643.0,60642.0,0.002817]
[1728627458416,0.0322169,60643.0,60642.0,0.002817]
[1728627458596,0.0322169,60643.0,60642.0,0.082617]
[1728627459289,0.1806259,60643.0,60642.0,0.082617]
[1728627460022,0.2036259,60643.0,60642.0,0.082617]
[1728627460247,0.2036259,60643.0,60642.0,0.002817]
[1728627463032,0.0552169,60643.0,60642.0,0.002817]
[1728627463223,0.2036259,60643.0,60642.0,0.002817]
[1728627463698,0.0552169,60643.0,60642.0,0.002817]
[1728627465492,0.0552169,60643.0,60642.0,0.173617]
[1728627466703,0.0422169,60643.0,60642.0,0.172617]
[1728627466948,0.0532169,60643.0,60642.0,0.173617]
[1728627467679,0.0532169,60643.0,60642.0,0.171617]
[1728627467680,0.0362169,60643.0,60642.0,0.171617]
[1728627467916,0.0492169,60643.0,60642.0,0.172617]
[1728627468388,0.0472169,60643.0,60642.0,0.172617]
[1728627468903,0.0492169,60643.0,60642.0,0.172617]
[1728627473157,0.45336158,60643.0,60642.0,0.001817]
[1728627473385,0.50279877,60643.0,60642.0,0.001817]
[1728627473606,0.52751737,60643.0,60642.0,0.001817]
[1728627475246,0.51554507,60643.0,60642.0,0.001817]